{"text_format":"3","workbook":"xlsx","n_sheets":1,"sheets":["FRUIT & VEGETABLES BOQ"],"not_rendered":{"defined_names":1},"read":"whole","date_system":"1900"}

{"sheet":"FRUIT & VEGETABLES BOQ","index":0,"n_rows":457,"n_cols":8,"rows_kept":457,"merged":[[456,0,457,4],[456,5,457,5],[456,6,457,6],[456,7,457,7]]}
["ITEM NO","DESCRIPTION","UOM","36 MONTHS QTY"," RATE EXCL VAT","TOTAL  AMOUNT EXCLUDING VAT","VAT AMOUNT @15%","TOTAL AMOUNT INCLUDING VAT"]
[null,"SUPPLY & DELIVERY OF FRESH FRUIT & VEGEATABLES AT EAL"]
[null,"BILL NO.1"]
[null,"THE FOLLOWING SUPPLY AND DELIVERY OF GRADE A FRESH FRUIT AND VEGEATABLES"]
[]
[null,"APPLE"]
[1,"APPLE:GOLDEN DELICIOUS FRESH;BOX;1 KG","each",2160,null,{"$f":"ROUND(E7*D7,2)","v":0},"Zero Rated",{"$f":"ROUND(F7,2)","v":0}]
[2,"APPLE:GRANNY SMITH FRESH;BOX;1 KG;ROUND","each",5760,null,{"$f":"ROUND(E8*D8,2)","v":0},"Zero Rated",{"$f":"ROUND(F8,2)","v":0}]
[3,"APPLE:RED FRESH;BOX;1 KG;GRADE 1;ROUND","each",16920,null,0,"Zero Rated",0]
[]
[null,"APRICOT"]
[4,"APRICOT:FRESH CALSS 1;ROUND;1 KG","each",36,null,0,"Zero Rated",{"$f":"ROUND(F12,2)","v":0}]
[]
[null,"ARTICHOKE"]
[5,"ARTICHOKE, HEART:PLASTIC BAG;1 KG","each",36,null,0,"Zero Rated",{"$f":"ROUND(F15,2)","v":0}]
[]
[null,"ASPARAGUS"]
[6,"ASPARAGUS:FRESH;1 KG;BUNDLE;GRADE 1","each",36,null,0,"Zero Rated",{"$f":"ROUND(F18,2)","v":0}]
[]
[null,"ATCHAR"]
[7,"SALAD PREPRD:ATCHAR;BUCKET PLASTIC;1 KG","each",36,null,0,{"$f":"ROUND(F21*0.15,2)","v":0},{"$f":"ROUND(F21+G21,2)","v":0}]
[]
[null,"AVOCADO"]
[8,"AVOCADO:FRESH;GRADE1;OVAL;BOX;1 KG","each",36,null,0,"Zero Rated",{"$f":"ROUND(F24,2)","v":0}]
[]
[null,"BANANA"]
[9,"BANANA:BOX;1 KG;GR 1;FRESH; RIPE","each",20520,null,0,"Zero Rated",{"$f":"ROUND(F27,2)","v":0}]
[]
[null,"BEANS"]
[10,"BEAN GRN:BOX;1 KG;GR 1;FRESH","each",5940,null,0,"Zero Rated",{"$f":"ROUND(F30,2)","v":0}]
[11,"BEANSPROUT:SLICED;PLASTIC BAG;1 KG","each",36,null,0,"Zero Rated",0]
[12,"BEANS CUT","KG",36,null,0,"Zero Rated",0]
[13,"BEAN FINE","KG",36,null,0,"Zero Rated",0]
[]
[null,"BEETROOT"]
[14,"BEETROOT:PLASTIC BAG;1 KG;BABY, FRESH","each",36,null,0,"Zero Rated",{"$f":"ROUND(F36,2)","v":0}]
[15,"BEETROOT:PLASTIC BAG;1 KG;FRESH;GRADE 1","each",4320,null,0,"Zero Rated",0]
[16,"BABY RAINBOW BEETROOT","KG",36,null,0,"Zero Rated",0]
[]
[null,"BLACKBERRIES"]
[17,"BLACKBERRIES","KG",36,null,0,"Zero Rated",{"$f":"ROUND(F41,2)","v":0}]
[]
[null,"BLUEBERRY"]
[18,"BLUEBERRY:GRADE A;FRUIT;KG","KG",36,null,0,"Zero Rated",{"$f":"ROUND(F44,2)","v":0}]
[19,"BLUEBERRIES","KG",36,null,0,"Zero Rated",0]
[20,"FROZEN BLUEBERRIES ","KG",36,null,0,0,0]
[]
[null,"BRINJAL"]
[21,"BRINJAL","KG",36,null,0,"Zero Rated",{"$f":"ROUND(F49,2)","v":0}]
[]
[null,"BROCCOLI"]
[22,"BROCCOLI:GRADE 1;CUT;PLASTIC BAG;1 KG","each",3960,null,0,"Zero Rated",{"$f":"ROUND(F52,2)","v":0}]
[23,"BROCCOLI:GRADE 1;HEAD;PLASTIC BAG;1 KG","each",36,null,0,"Zero Rated",0]
[24,"BROCCOLI FLORETTES ","KG",36,null,0,"Zero Rated",0]
[25,"CAULI BROC FLORETTES","KG",36,null,0,"Zero Rated",0]
[]
[null,"BRUSSEL SPROUT"]
[26,"BRUSSEL SPROUT:GRADE 1;ROUND;PLASTIC BAG","each",36,null,0,"Zero Rated",{"$f":"ROUND(F58,2)","v":0}]
[]
[null,"BUTTERNUT"]
[27,"BUTTERNUT:CUBES;BAG PLASTIC;1 KG;GRADE 1","each",720,null,0,"Zero Rated",{"$f":"ROUND(F61,2)","v":0}]
[28,"BUTTERNUT CUT","KG",36,null,0,"Zero Rated",0]
[]
[null,"BRINJAL "]
[29,"BABY BRINJAL KG","KG",36,null,0,"Zero Rated",{"$f":"ROUND(F65,2)","v":0}]
[]
[null,"CABBAGE"]
[30,"CABBAGE:BOX;1 KG;ROUND RED CABBAGE;WHOLE","each",720,null,0,"Zero Rated",{"$f":"ROUND(F68,2)","v":0}]
[31,"CABBAGE;GRATED;FINE:PLASTIC BAG;1 KG;GRADE 1","each",8460,null,0,"Zero Rated",0]
[32,"CHINESE CABBAGE","KG",36,null,0,"Zero Rated",0]
[]
[null,"CARROT"]
[33,"CARROT:BAG PLASTIC;1 KG;GRADE 1;GRATED","each",3168,null,{"$f":"ROUND(E73*D73,2)","v":0},"Zero Rated",{"$f":"ROUND(F73,2)","v":0}]
[34,"CARROT:BAG PLASTIC;1 KG;GRADE 1;JULIENNE","each",360,null,0,"Zero Rated",0]
[35,"CARROT:BAG PLASTIC;1 KG;GRADE 1;SLICED","each",720,null,0,"Zero Rated",0]
[36,"CARROT:BAG PLASTIC;1 KG;GRADE 1;STICKS","each",10620,null,0,"Zero Rated",0]
[37,"CARROT:BAG PLASTIC;1 KG;GRADE 1;WHOLE","each",36,null,0,"Zero Rated",0]
[38,"CARROT:PLASTIC BAG;1 KG;GRADE 1;5-7 CM","each",36,null,0,"Zero Rated",0]
[39,"BABY RAINBOW CARROTS;PEELED;STEM ON","KG",36,null,0,"Zero Rated",0]
[40,"CARROT BATTON","KG",36,null,0,"Zero Rated",0]
[41,"CARROT DICED","KG",36,null,0,"Zero Rated",0]
[42,"BABY CARROTS KG","KG",36,null,0,"Zero Rated",0]
[43,"BABY CARROT PEELED KG","KG",36,null,0,"Zero Rated",0]
[]
[null,"CAULIFLOWER"]
[44,"CAULIFLOWER:PLASTIC BAG;1 KG;FLORETS","each",2160,null,0,"Zero Rated",{"$f":"ROUND(F86,2)","v":0}]
[]
[null,"CELERY"]
[45,"CELERY:BOX;1 KG;GRADE 1;CHOPPED","each",972,null,0,"Zero Rated",{"$f":"ROUND(F89,2)","v":0}]
[46,"CELERIAC","KG",360,null,0,"Zero Rated",0]
[47,"TABLE CELERY SLICED","KG",36,null,0,"Zero Rated",0]
[]
[null,"CHERRY"]
[48,"CHERRY:FRESH;BOX (PUNNETS);1 KG;ROUND","each",36,null,0,"Zero Rated",{"$f":"ROUND(F94,2)","v":0}]
[]
[null,"CHILLI"]
[49,"CHILLI:FRESH;GREEN;SPEAR SHAPE;PLASTIC BAG;1","each",36,null,0,"Zero Rated",{"$f":"ROUND(F97,2)","v":0}]
[50,"CHILLI:RESH RED;SPEAR SHAPE;PLASTIC BAG","each",36,null,0,"Zero Rated",0]
[51,"CHILLI GREEN CRUSHED ","KG",360,null,0,{"$f":"ROUND(F99*0.15,2)","v":0},{"$f":"ROUND(F99+G99,2)","v":0}]
[52,"CHILLI RED CRUSHED","KG",360,null,0,0,0]
[]
[null,"CHIPS "]
[null,"CHIPS 12MM","KG",36,null,0,"Zero Rated",{"$f":"ROUND(F103,2)","v":0}]
[53,"POTATO:CHIPS FRESH;BAG PLASTIC;1 KG","each",36,null,0,"Zero Rated",0]
[54,"POTATO:FRESH CHIPS SKIN ON;PLASTIC BAG;1","each",36,null,0,"Zero Rated",0]
[]
[null,"CHOI"]
[55,"BABY BOK CHOI KG","KG",36,null,0,"Zero Rated",{"$f":"ROUND(F108,2)","v":0}]
[56,"VEGETABLE, FRESH:BOK CHOY;1 KG;GRADE 1","each",36,null,0,"Zero Rated",0]
[]
[null,"CORN"]
[57,"CORN:BABY WHITE ON COB;BOX;1 KG;FRESH","each",360,null,0,"Zero Rated",{"$f":"ROUND(F112,2)","v":0}]
[58,"CORN:SWEET;GRADE 1;LONG CYLINDRICAL;1 KG","each",5040,null,0,"Zero Rated",0]
[]
[null,"CUCUMBER"]
[59,"CUCUMBER:1 KG;ENGLISH FRESH;GRADE 1","each",3708,null,0,"Zero Rated",{"$f":"ROUND(F116,2)","v":0}]
[]
[null,"EGGPLANT"]
[60,"EGGPLANT:FRESH;OVAL;BOX;1 KG","each",36,null,0,"Zero Rated",{"$f":"ROUND(F119,2)","v":0}]
[]
[null,"ENDIVE"]
[61,"ENDIVE:FRESH VEGETABLE FOR SALADS;1 KG","each",36,null,0,"Zero Rated",{"$f":"ROUND(F122,2)","v":0}]
[]
[null,"FIG"]
[62,"FIG:PEAR SHAPED;BOX;1 KG;FRESH","each",36,null,0,"Zero Rated",{"$f":"ROUND(F125,2)","v":0}]
[63,"DRIED FIGS","KG",36,null,0,"Zero Rated",0]
[]
[null,"FENNEL "]
[64,"FENNEL BULBS ","KG",36,null,0,"Zero Rated",{"$f":"ROUND(F129,2)","v":0}]
[]
[null,"FLWR EDBL"]
[65,"FLWR EDBL:CALENDULA;20 G;GRADE 1","each",36,null,0,"Zero Rated",{"$f":"ROUND(F132,2)","v":0}]
[66,"FLWR EDBL:HIBISCUS FRESH;20 G;GRADE 1","each",36,null,0,"Zero Rated",0]
[67,"FLWR EDBL:NASTURTIUM;20 G;GRADE 1","each",36,null,0,"Zero Rated",0]
[68,"FLWR EDBL:PANSIES FRESH;20 G;GRADE 1","each",36,null,0,"Zero Rated",0]
[69,"FLWR EDBL:ROSES FRESH;20 G;GRADE 1","each",36,null,{"$f":"ROUND(E136*D136,2)","v":0},"Zero Rated",0]
[70,"FLWR EDBL:SAMPHIRE FRESH;20 G;GRADE 1","each",36,null,0,"Zero Rated",0]
[71,"FLWR EDBL:SORREL FRESH;20 G/HR;GRADE 1","each",36,null,0,"Zero Rated",0]
[]
[null,"FRUIT, FRESH"]
[72,"FRUIT, FRESH:BLACKBERRIES;PLASTIC PUNNET:1KG","each",18,null,0,"Zero Rated",{"$f":"ROUND(F141,2)","v":0}]
[73,"FRUIT, FRESH:ELDERBERRIES;PLASTIC PUNNET:1KG","each",18,null,0,"Zero Rated",0]
[74,"FRUIT, FRESH:GOOSEBERRIES;PLASTIC BAG;1","each",36,null,0,"Zero Rated",0]
[75,"FRUIT, FRESH:LOQUATS;1 KG;GRADE 1","each",36,null,0,"Zero Rated",0]
[76,"FRUIT, FRESH:QUINCE;1 KG;GRADE 1","each",36,null,0,"Zero Rated",0]
[77,"FRUIT, FRESH:STAR FRUIT;1 KG;GRADE 1","each",36,null,0,"Zero Rated",0]
[]
[null,"GARLIC"]
[78,"GARLIC:FRESH;CRUSHED;BUCKET;1 KG","each",1620,null,0,{"$f":"ROUND(F149*0.15,2)","v":0},{"$f":"ROUND(F149+G149,2)","v":0}]
[]
[null,"GINGER"]
[79,"GINGER:CRUSHED;PLASTIC BUCKET;1 KG","each",720,null,0,0,0]
[]
[null,"GEM SQUASH"]
[80,"GEM SQUASH HALVED ","KG",36,null,0,"Zero Rated",{"$f":"ROUND(F155,2)","v":0}]
[]
[null,"GRANADILLA"]
[81,"GRANADILLA:PAPER BOX HACCP PACKAGING;1","each",36,null,0,"Zero Rated",{"$f":"ROUND(F158,2)","v":0}]
[]
[null,"GRAPE"]
[82,"GRAPE:BLACK;SEEDLESS;ROUND;BOX FRESH;1 KG;GRADE 1","each",1440,null,0,"Zero Rated",{"$f":"ROUND(F161,2)","v":0}]
[83,"GRAPE:WHITE;SEEDLESS;ROUND;BOX FRESH;1 KG;GRADE 1","each",1440,null,0,"Zero Rated",0]
[84,"GRAPES RED;SEEDLESS;ROUND;BOX FRESH;1 KG;GRADE 1","each",180,null,0,"Zero Rated",0]
[]
[null,"GRAPEFRUIT"]
[85,"GRAPEFRUIT:CITRUS FRUIT, BITTER;BAG;1 KG","each",36,null,0,"Zero Rated",{"$f":"ROUND(F166,2)","v":0}]
[]
[null,"GOOSEBERRIES"]
[86,"FROZEN GOOSEBERRIES","KG",36,null,0,0,0]
[]
[null,"GUAVA "]
[87,"GUAVA ","KG",36,null,0,"Zero Rated",{"$f":"ROUND(F172,2)","v":0}]
[]
[null,"HERBS"]
[88,"HERB:BASIL FRESH;PLASTIC BAG;1 G","each",36,null,0,"Zero Rated",{"$f":"ROUND(F175,2)","v":0}]
[89,"HERB:CHIVES FRESH;PLASTIC BAG;1 G","each",36,null,0,"Zero Rated",0]
[90,"HERB:CORIANDER FRESH;PLASTIC BAG;1 G","each",36,null,0,"Zero Rated",0]
[91,"HERB:CURRY LEAVES;PLASTIC BAG;1 G","each",36,null,0,"Zero Rated",0]
[92,"HERB:DILL FRESH;PLASTIC BAG;1 G","each",36,null,0,"Zero Rated",0]
[93,"HERB:FENNEL FRESH;PLASTIC BAG;1 G","each",36,null,0,"Zero Rated",0]
[94,"HERB:LEMON GRASS FRESH HERB;PLASTIC BAG","each",36,null,0,"Zero Rated",0]
[95,"HERB:MARJORAM FRESH;PLASTIC BAG;1 G","each",36,null,0,"Zero Rated",0]
[96,"HERB:MICRO FRESH;PLASTIC BAG;1 KG","each",36,null,0,"Zero Rated",0]
[97,"HERB:MINT FRESH;PLASTIC BAG;1 G","each",36,null,0,"Zero Rated",0]
[98,"HERB:PARSLEY FRESH;PLASTIC BAG;1 G","each",36,null,0,"Zero Rated",0]
[99,"HERB:PEA TENDRILS LEAVES FRESH;1 KG","each",36,null,0,"Zero Rated",0]
[100,"HERB:ROCKET FRESH;PLASTIC BAG;1 G","each",36,null,0,"Zero Rated",0]
[101,"HERB:ROSEMARY FRESH;PLASTIC BAG;1 G","each",36,null,0,"Zero Rated",0]
[102,"HERB:SAGE FRESH;PLASTIC BAG;1 G","each",36,null,0,"Zero Rated",0]
[103,"HERB:TARRAGON;PLASTIC BAG;1 KG","each",36,null,0,"Zero Rated",0]
[104,"HERB:THYME FRESH;PLASTIC BAG;1 G","each",36,null,0,"Zero Rated",0]
[105,"HERB:WATERCRESS FRESH;PLASTIC BAG;1 G","each",36,null,0,"Zero Rated",0]
[106,"HERB- BAY LEAVES","KG",36,null,0,"Zero Rated",0]
[107,"HERB- DHANIA","KG",36,null,0,"Zero Rated",0]
[108,"HERB-EDIBLE FLOWERS","30G",36,null,0,"Zero Rated",0]
[109,"HERB- ITALIAN PARSLEY","KG",36,null,0,"Zero Rated",0]
[110,"HERB-MIXED MICRO GREENS","KG",36,null,0,"Zero Rated",0]
[111,"HERB- MIXED MICRO GREENS 200G","PKT",36,null,0,"Zero Rated",0]
[112,"HERB- ORIGANUM ","KG",36,null,0,"Zero Rated",0]
[113,"HERB- SAMPHIRE","PKT",36,null,{"$f":"ROUND(E200*D200,2)","v":0},"Zero Rated",0]
[114,"HERB- SHOOTS ","PKT",36,null,0,"Zero Rated",0]
[]
[null,"KALE"]
[120,"VEGETABLE, FRESH:KALE;PLASTIC BAG;1 KG","each",180,null,0,"Zero Rated",{"$f":"ROUND(F204,2)","v":0}]
[]
[null,"KEBAB"]
[121,"KEBAB:FRESH ASSORTED VEGETABLES;BOX;1 KG","each",180,null,0,"Zero Rated",{"$f":"ROUND(F207,2)","v":0}]
[122,"KEBAB:FRUIT;PLASTIC;1 KG;ASSORTED FRUITS","each",180,null,0,"Zero Rated",0]
[]
[null,"KIWI FRUIT"]
[123,"KIWI FRUIT:EGG SHAPED;BOX;1 KG;GRADE1","each",252,null,0,"Zero Rated",{"$f":"ROUND(F211,2)","v":0}]
[]
[null,"KUMQUATS"]
[124,"KUMQUATS","KG",180,null,0,"Zero Rated",{"$f":"ROUND(F214,2)","v":0}]
[]
[null,"LEEK"]
[125,"LEEK:FLAT PENCIL-THIN GREEN LEAVES;1 KG","each",36,null,0,"Zero Rated",{"$f":"ROUND(F217,2)","v":0}]
[]
[null,"LEMON"]
[126,"LEMON:FRESH;ROUND OR OVAL;BOX;1 KG","each",2700,null,0,"Zero Rated",{"$f":"ROUND(F220,2)","v":0}]
[]
[null,"LETTUCE"]
[127,"LETTUCE:BABY LEAF MIX FRESH;BOX;1 KG","each",36,null,0,"Zero Rated",{"$f":"ROUND(F223,2)","v":0}]
[128,"LETTUCE:COS HEAD FRESH;BOX;1 KG;GRADE 1","each",36,null,0,"Zero Rated",0]
[129,"LETTUCE:ICE BERG FRESH;ROUND;BOX;4 KG","each",540,null,0,"Zero Rated",0]
[130,"LETTUCE:MIXED FRESH;PIECES;BOX;1 KG","each",2880,null,0,"Zero Rated",0]
[131,"LETTUCE:ROCKET WILD FRESH;BOX;1 KG","each",36,null,0,"Zero Rated",0]
[132,"LETTUCE BUTTER","KG",36,null,0,"Zero Rated",0]
[133,"LETTUCE COS ","KG",36,null,0,"Zero Rated",0]
[134,"LETTUCE GREEN FRILLY LETTUCE ","BOX",36,null,0,"Zero Rated",0]
[135,"LETTUCE LOLLA ROSSA","KG",36,null,0,"Zero Rated",0]
[136,"LETTUCE ASIAN MIX 200G","PKT",36,null,0,"Zero Rated",0]
[]
[null,"LIME"]
[137,"LIME:DEEP GREEN ROUND 3-6 CM DIA;1 KG","each",72,null,0,"Zero Rated",{"$f":"ROUND(F235,2)","v":0}]
[]
[null,"LYCHEE"]
[138,"LYCHEE:PAPER BOX;1 KG;FRUIT FRESH RIPE","each",72,null,0,"Zero Rated",{"$f":"ROUND(F238,2)","v":0}]
[]
[null,"MANGO"]
[139,"MANGO:RIPE;ROUND OR OVAL;BOX FRESH","each",72,null,0,"Zero Rated",{"$f":"ROUND(F241,2)","v":0}]
[140,"FROZEN MANGO","KG",72,null,0,{"$f":"ROUND(F242*0.15,2)","v":0},{"$f":"ROUND(F242+G242,2)","v":0}]
[]
[null,"MARROW VEG"]
[141,"MARROW VEG:BABY FRESH;BATTONS;1 KG","each",180,null,0,"Zero Rated",{"$f":"ROUND(F245,2)","v":0}]
[142,"MARROW VEG:BABY FRESH;DICED;BAG PLASTIC","each",360,null,0,"Zero Rated",0]
[143,"MARROW VEG:BABY FRESH;JULIENNE;1 KG","each",720,null,0,"Zero Rated",0]
[144,"MARROW VEG:BABY FRESH;SLICED;BAG PLASTIC","each",1440,null,0,"Zero Rated",0]
[]
[null,"MELON"]
[145,"MELON:CANARY FRESH RIPE;1 KG;GRADE A","KG",360,null,0,"Zero Rated",{"$f":"ROUND(F251,2)","v":0}]
[146,"MELON:FRESH SPANSPEK;ROUND;BOX;GRADE 1","KG",360,null,0,"Zero Rated",0]
[]
[null,"MIXED VEGETABLES"]
[147,"MIXED VEGETABLES:BABY, FRESH;PLASTIC BAG","each",720,null,0,"Zero Rated",{"$f":"ROUND(F255,2)","v":0}]
[148,"MIXED VEGETABLES:FRESH COUNTRY MIX;1 KG","each",14400,null,0,"Zero Rated",0]
[149,"MIXED VEGETABLES:FRESH STIR FRY;1 KG","each",5400,null,{"$f":"ROUND(E257*D257,2)","v":0},"Zero Rated",0]
[150,"BABY MIXED VEG KG","KG",180,null,0,"Zero Rated",0]
[151,"ROAST MIXED VEG","KG",180,null,0,"Zero Rated",0]
[152,"ROOT MIX VEG","KG",180,null,0,"Zero Rated",0]
[153,"VEG BUNDLE","EACH",180,null,0,"Zero Rated",0]
[154,"VEGETABLE  KEBAB","EACH",180,null,0,"Zero Rated",0]
[]
[null,"MIX FRUIT"]
[155,"FRUIT KEBAB COCKTAIL","EACH",180,null,0,"Zero Rated",{"$f":"ROUND(F265,2)","v":0}]
[156,"FRUIT KEBAB","EACH",180,null,0,"Zero Rated",0]
[157,"FROZEN MIXED BERRIES ","KG",72,null,0,{"$f":"ROUND(F267*0.15,2)","v":0},{"$f":"ROUND(F267+G267,2)","v":0}]
[]
[null,"MUSHROOM"]
[158,"MUSHROOM:BROWN FRESH;PLASTIC BAG;1 KG","each",36,null,0,"Zero Rated",{"$f":"ROUND(F270,2)","v":0}]
[159,"MUSHROOM:ERYNGII FRESH;PLASTIC BAG;1 KG","each",36,null,0,"Zero Rated",0]
[160,"MUSHROOM:EXOTIC MIX FRESH;PLASTIC BAG;1","each",36,null,0,"Zero Rated",0]
[161,"MUSHROOM:OYSTER FRESH;PLASTIC BAG;1 KG","each",36,null,0,"Zero Rated",0]
[162,"MUSHROOM:PORCINI FRESH;PLASTIC BAG;1 KG","each",36,null,0,"Zero Rated",0]
[163,"MUSHROOM:PORTOBELLO FRESH;PLASTIC BAG;1","each",36,null,0,"Zero Rated",0]
[164,"MUSHROOM:SHIITAKE FRESH;PLASTIC BAG;1 KG","each",36,null,0,"Zero Rated",0]
[165,"MUSHROOM:SHIMEJI BROWN FRESH;PLASTIC BAG","each",36,null,0,"Zero Rated",0]
[166,"MUSHROOM:SHIMEJI WHITE FRESH;PLASTIC BAG","each",36,null,0,"Zero Rated",0]
[167,"MUSHROOM:WHITE FRESH;BOX;1 KG;ROUND","each",1620,null,0,"Zero Rated",0]
[168,"MUSHROOM PORTABELLINI","KG",36,null,0,"Zero Rated",0]
[]
[null,"NAARTJIE"]
[169,"NAARTJIE:CITRUS","each",180,null,0,"Zero Rated",{"$f":"ROUND(F283,2)","v":0}]
[]
[null,"NECTARINE"]
[170,"NECTARINE:CLASS 1;1 KG;DRUPE STONE FRUIT","each",180,null,0,"Zero Rated",{"$f":"ROUND(F286,2)","v":0}]
[]
[null,"ONION"]
[171,"ONION:BABY FRESH;PLASTIC BAG;1 KG","each",180,null,0,"Zero Rated",{"$f":"ROUND(F289,2)","v":0}]
[172,"ONION:FRESH LEEK;PACKET;1 KG","each",720,null,0,"Zero Rated",0]
[173,"ONION:FRESH PEELED, WHOLE;BAG PLASTIC;1","each",12420,null,0,"Zero Rated",0]
[174,"ONION:FRESH SPRING ONION;PACKET;1 KG","each",360,null,0,"Zero Rated",0]
[175,"ONION:RED GRADE 1;BAG;1 KG;BALBOUS;FRESH","each",1620,null,0,"Zero Rated",0]
[]
[null,"OLIVES"]
[176,"OLIVES CALAMTA","1KG",180,null,0,"Zero Rated",{"$f":"ROUND(F296,2)","v":0}]
[]
[null,"ORANGE"]
[177,"ORANGE:PLASTIC BAG;1 KG","each",17820,null,0,"Zero Rated",{"$f":"ROUND(F299,2)","v":0}]
[]
[null,"OKRA "]
[178,"OKRA ","KG",180,null,0,"Zero Rated",{"$f":"ROUND(F302,2)","v":0}]
[]
[null,"PAPAYA"]
[179,"PAPAYA:ROUND OR OVAL;BOX FRESH","each",180,null,0,"Zero Rated",{"$f":"ROUND(F305,2)","v":0}]
[]
[null,"PARSNIP"]
[180,"PARSNIP:ROOT VEGETABLE GRADE1;1 KG;FRESH","each",72,null,0,"Zero Rated",{"$f":"ROUND(F308,2)","v":0}]
[]
[null,"PATTY PAN"]
[181,"PATTY PAN:YELLOW;PLASTIC BAG;1 KG","each",72,null,0,"Zero Rated",{"$f":"ROUND(F311,2)","v":0}]
[182,"PATTY:YELLOW AND GREEN;BOX;1 KG;SMALL","each",72,null,0,"Zero Rated",0]
[]
[null,"PAWPAW"]
[183,"PAWPAW","KG",180,null,0,"Zero Rated",{"$f":"ROUND(F315,2)","v":0}]
[]
[null,"PEA"]
[184,"PEA:SNAP FRESH;BOX;1 KG;ROUND","each",180,null,0,"Zero Rated",{"$f":"ROUND(F318,2)","v":0}]
[]
[null,"PEACH"]
[185,"PEACH:NECTARINE FRESH;BOX;1 KG;ROUND","each",180,null,{"$f":"ROUND(E321*D321,2)","v":0},"Zero Rated",{"$f":"ROUND(F321,2)","v":0}]
[186,"PEACH:YELLOW FRESH;BOX;1 KG;ROUND","each",180,null,0,"Zero Rated",0]
[]
[null,"PEAR"]
[187,"PEAR:FRESH FRUIT;BOX;15 KG;OVAL","each",3240,null,0,"Zero Rated",{"$f":"ROUND(F325,2)","v":0}]
[188,"PEAR:PRICKLY FRESH;BOX;1 KG","each",180,null,0,"Zero Rated",0]
[]
[null,"PEPPADEW"]
[189,"PEPPADEW","KG",180,null,0,"Zero Rated",{"$f":"ROUND(F329,2)","v":0}]
[]
[null,"PEPPER BELL"]
[190,"PEPPER BELL:GREEN FRESH;BOX;1 KG","each",4320,null,0,"Zero Rated",{"$f":"ROUND(F332,2)","v":0}]
[191,"PEPPER BELL:JALAPENO CHILLI PEPPER;1 KG","each",180,null,0,"Zero Rated",0]
[192,"PEPPER BELL:RED FRESH;BOX;1 KG","each",4320,null,0,"Zero Rated",0]
[193,"PEPPER BELL:YELLOW FRESH;BOX;1 KG","each",720,null,0,"Zero Rated",0]
[]
[null,"PINEAPPLE"]
[194,"PINEAPPLE:BOX;OVAL;FRESH;GRADE 1","each",2412,null,0,"Zero Rated",{"$f":"ROUND(F338,2)","v":0}]
[]
[null,"PLUM"]
[195,"PLUM:FRESH;ROUND OR OVAL;BOX;1 KG","each",180,null,0,"Zero Rated",{"$f":"ROUND(F341,2)","v":0}]
[]
[null,"POTATO SWEET"]
[196,"POTATO SWEET:CUBED;PLASTIC BAG;10 KG","each",1260,null,0,"Zero Rated",{"$f":"ROUND(F344,2)","v":0}]
[197,"POTATO SWEET:SLICED;BAG PLASTIC;10 KG","each",720,null,0,"Zero Rated",0]
[198,"SWEET POTATO CHIPS 10MM ","KG",180,null,0,"Zero Rated",0]
[199,"SWEET POTATO CUT & PEELED ","KG",360,null,0,"Zero Rated",0]
[200,"SWEET POTATO CUT SKIN ON","KG",180,null,0,"Zero Rated",0]
[]
[null,"POTATO"]
[201,"POTATO WHT:FRESH BABY WHOLE PEELED;1 KG","each",180,null,0,"Zero Rated",{"$f":"ROUND(F351,2)","v":0}]
[202,"POTATO WHT:FRESH DICED PEELED;CUBES;1 KG","each",5400,null,0,"Zero Rated",0]
[203,"POTATO WHT:FRESH NEW PEELED;WEDGES;1 KG","each",16920,null,0,"Zero Rated",0]
[204,"POTATO WHT:FRESH PEELED;SLICED;1 KG","each",1620,null,0,"Zero Rated",0]
[205,"POTATO WHT:FRESH WHOLE FOILED PEELED;1","each",180,null,0,"Zero Rated",0]
[206,"POTATO:BABY WHOLE UNPEELED FRESH;1 KG","each",180,null,0,"Zero Rated",0]
[207,"POTATO:MEDIUM SIZE SKIN ON FRESH WHOLE;1","each",180,null,0,"Zero Rated",0]
[208,"POTATO:WASHED WHOLE;BAG PLASTIC;1 KG","each",3240,null,0,"Zero Rated",0]
[209,"POTATO:WEDGES FRESH SKIN-ON;PLASTIC BAG","each",180,null,0,"Zero Rated",0]
[]
[null,"POMEGRANATE"]
[210,"POMEGRANATE SEEDS","KG",36,null,0,"Zero Rated",{"$f":"ROUND(F362,2)","v":0}]
[]
[null,"PUMPKIN"]
[211,"PUMPKIN:FRESH;BAG PLASTIC;1 KG;CUBED","each",17640,null,0,"Zero Rated",{"$f":"ROUND(F365,2)","v":0}]
[212,"PUMPKIN CUT","KG",72,null,0,"Zero Rated",0]
[213,"PUMPKIN DICED ","KG",72,null,0,"Zero Rated",0]
[]
[null,"RADISH"]
[214,"RADISH:FRESH RADISH;ROUND BULBLIKE ROOT","each",72,null,0,"Zero Rated",{"$f":"ROUND(F370,2)","v":0}]
[215,"RADISHES (ASSORTED)","KG",72,null,0,"Zero Rated",0]
[]
[null,"RASPBERRY"]
[216,"RASPBERRY:OVAL;GRADE 1 FRESH;1 KG;BOX","each",72,null,0,"Zero Rated",{"$f":"ROUND(F374,2)","v":0}]
[217,"FROZEN RASPBERRIES","KG",72,null,0,{"$f":"ROUND(F375*0.15,2)","v":0},{"$f":"ROUND(F375+G375,2)","v":0}]
[]
[null,"RHUBARB"]
[218,"VEGETABLE, FRESH:RHUBARB;1 KG;GRADE 1","each",72,null,0,"Zero Rated",{"$f":"ROUND(F378,2)","v":0}]
[]
[null,"SALADS"]
[219,"SALAD PREPRD:ASIAN NOODLE;1 KG","each",72,null,0,{"$f":"ROUND(F381*0.15,2)","v":0},0]
[220,"SALAD PREPRD:FRESH TROPICAL FRUIT;CUBED","each",25740,null,0,0,0]
[221,"DESIGNER FRUIT SALAD ","KG",180,null,0,0,0]
[222,"SALAD BEETROOT","KG",180,null,0,0,0]
[223,"SALAD CHAKALAKA COOKED ","KG",180,null,{"$f":"ROUND(E385*D385,2)","v":0},0,0]
[224,"SALAD CHICPEA & LENTIL ","KG",180,null,0,0,0]
[225,"SALAD COPPER PENNY ","KG",180,null,0,0,0]
[226,"SALAD CURRY BEAN","KG",180,null,0,0,0]
[227,"SALAD NEW POTATO","KG",180,null,0,0,0]
[228,"SALAD SAMBALS WITH CHILLE","KG",180,null,0,0,0]
[229,"SALAD WALDOF","KG",180,null,0,0,0]
[]
[null,"SPINACH"]
[230,"SPINACH:DEVEINED FRESH;PLASTIC BAG;1 KG","each",1080,null,0,"Zero Rated",{"$f":"ROUND(F394,2)","v":0}]
[231,"SPINACH:FLAT LEAVE;BAG PLASTIC;1 KG","each",8820,null,0,"Zero Rated",0]
[232,"BABY SPINACH","KG",180,null,0,"Zero Rated",0]
[233,"SPINACH CUT","KG",180,null,0,"Zero Rated",0]
[]
[null,"SPANSPEK"]
[234,"SPANSPEK","KG",360,null,0,"Zero Rated",{"$f":"ROUND(F400,2)","v":0}]
[]
[null,"SQUASH"]
[235,"SQUASH:FRESH GEM;PLASTIC;1 KG;GRADE 1","each",180,null,0,"Zero Rated",{"$f":"ROUND(F403,2)","v":0}]
[]
[null,"STRAWBERRY"]
[236,"STRAWBERRY:PUNNETS PACKED IN A BOX;1 KG","each",720,null,0,"Zero Rated",{"$f":"ROUND(F406,2)","v":0}]
[237,"FROZEN STRAWBERRIES","KG",180,null,0,0,0]
[]
[null,"TOMATO"]
[238,"TOMATO:COCKTAIL FRESH;1 KG;BOX;GRADE 1","each",1800,null,0,"Zero Rated",{"$f":"ROUND(F410,2)","v":0}]
[239,"TOMATO:EXOTIC MIX FRESH;1 KG;GRADE 1","each",36,null,0,"Zero Rated",0]
[240,"TOMATO:HEIRLOOM FRESH, MEDIUM/COCKTAIL;1","each",36,null,0,"Zero Rated",0]
[241,"TOMATO:ROMANITA FRESH;1 KG;PLASTIC BAG","each",36,null,0,"Zero Rated",0]
[242,"TOMATO:WHOLE RED;1 KG;BOX;FRESH;ROUND","each",11915,null,0,"Zero Rated",0]
[243,"TOMATO MEDLEY MIX","KG",36,null,0,"Zero Rated",0]
[244,"TOMATO ROSA","KG",36,null,0,"Zero Rated",0]
[245,"TOMATO SPANISH SANTE 200G","PKT",36,null,0,"Zero Rated",0]
[246,"TOMATO SUN DRIED ","KG",36,null,0,"Zero Rated",0]
[]
[null,"TURNIPS RAW"]
[247,"VEGETABLE, FRESH:TURNIPS RAW;PLASTIC BAG","each",36,null,0,"Zero Rated",{"$f":"ROUND(F421,2)","v":0}]
[]
[null,"WATERMELON"]
[248,"WATERMELON","KG",1404,null,0,"Zero Rated",{"$f":"ROUND(F424,2)","v":0}]
{"$rows_empty":32}
["TOTAL CARRIED TO FORM OF OFFER",{"$nulls":4},{"$f":"SUM(F7:F456)","v":0},{"$f":"SUM(G7:G456)","v":0},{"$f":"ROUND(F457+G457,2)","v":0}]